bitfinex-derivatives/quotes_SOLF0:USTF0_20241010
["timestamp","ask_amount","ask_price","bid_price","bid_amount"]
[1728576185531,7.2089655,139.0,138.95,11.07]
[1728576185736,1.2689655,138.99,138.95,11.07]
[1728576185926,11.07,138.99,138.9,8.75751906]
[1728576186128,11.07,138.97,138.92,11.07]
[1728576186322,11.07,138.97,138.93,5.90593103]
[1728576186524,5.94,138.99,138.89,8.88253906]
[1728576186730,1.26902639,138.98,138.92,17.31]
[1728576186940,27.6,138.99,138.93,5.90525038]
[1728576187240,27.6,138.99,138.9,17.31]
[1728576187546,3.6015,138.97,138.91,15.35211766]
[1728576187835,5.94,138.99,138.92,15.35211766]
[1728576188132,3.6018,138.96,138.93,5.90466064]
[1728576188337,3.62050795,139.0,138.92,17.31]
[1728576188534,17.43502,139.01,138.92,17.31]
[1728576188535,7.20890364,138.99,138.92,17.31]
[1728576188731,3.6012,138.98,138.93,5.90314723]
[1728576188933,9.49502735,138.99,138.92,17.31]
[1728576189131,9.49502735,138.99,138.93,5.90268426]
[1728576189332,3.55502735,138.99,138.94,23.21268426]
[1728576189531,0.12502,139.01,138.95,5.89927223]
[1728576189732,0.12502,139.01,138.94,17.31]
[1728576189733,1.26875755,139.0,138.94,17.31]
[1728576190026,3.62529193,138.99,138.94,17.31]
[1728576190229,0.12502,139.01,138.94,17.31]
[1728576190436,1.26878367,139.0,138.94,17.31]
[1728576190635,3.58246185,138.99,138.94,17.31]
[1728576191043,3.6005,139.0,138.94,20.912]
[1728576191236,27.41836029,139.01,138.92,20.0258]
[1728576191435,1.26876839,139.0,138.93,15.33468267]
[1728576191636,1.26876839,139.0,138.92,20.0258]
[1728576191836,1.26876839,139.0,138.93,18.93348794]
[1728576191837,3.6008,138.99,138.93,18.93348794]
[1728576192039,3.6008,138.99,138.94,5.89693335]
[1728576192235,3.6008,138.99,138.93,3.6021]
[1728576192435,3.6005,139.0,138.94,9.49767086]
[1728576192630,27.41836029,139.01,138.95,5.89577086]
[1728576192836,27.41836029,139.01,138.94,3.6019]
[1728576193037,3.6008,138.99,138.95,5.89578137]
[1728576193236,3.6008,138.99,138.94,3.602]
[1728576193438,3.6008,138.99,138.95,5.89498165]
[1728576193642,3.6013,138.97,138.91,5.0353]
[1728576193844,17.31,139.0,138.92,15.32835952]
[1728576194144,17.31,139.0,138.94,3.602]
[1728576194145,3.6008,138.99,138.94,3.602]
[1728576194439,10.10836029,139.01,138.92,17.31]
[1728576194647,2.53753645,139.0,138.93,15.32761062]
[1728576194835,1.26877134,139.0,138.95,3.6016]
[1728576198952,1.26877134,139.0,138.94,17.31]
[1728576199164,4.86947134,139.0,138.94,17.31]
[1728576199454,18.57877134,139.0,138.92,9.0495]
[1728576199651,18.57877134,139.0,138.93,15.3044843]
[1728576199838,18.57877134,139.0,138.92,9.0495]
[1728576199839,3.6011,138.98,138.92,2.7095]
[1728576200040,6.34,138.98,138.92,2.7095]
[1728576200246,6.34,138.98,138.93,3.6022]
[1728576200439,9.9411,138.98,138.93,3.6022]
[1728576200643,6.34,138.98,138.94,3.6019]
[1728576200941,6.34,138.98,138.93,17.31]
[1728576201138,6.34,138.98,138.95,3.6015]
[1728576201740,3.6006,139.0,138.94,3.6019]
[1728576201940,3.6006,139.0,138.93,23.65]
[1728576202650,3.6009,138.99,138.93,23.65]
[1728576203239,3.6009,138.99,138.94,3.6019]
[1728576203846,3.6009,138.99,138.95,3.6018]
[1728576204743,3.6006,139.0,138.93,23.65]
[1728576204948,3.6006,139.0,138.95,3.6016]
[1728576205543,3.6006,139.0,138.93,23.65]
[1728576205738,3.76836029,139.01,138.95,17.31]
[1728576206141,3.76836029,139.01,138.97,3.6012]
[1728576206336,3.6006,139.0,138.93,23.65]
[1728576206553,14.6706,139.0,138.96,11.07]
[1728576207141,3.6013,138.98,138.92,2.7095]
[1728576207341,11.07,138.99,138.94,14.672]
[1728576207946,11.07,138.98,138.94,11.07]
[1728576208647,3.6013,138.97,138.94,11.07]
[1728576208847,11.07,138.98,138.94,11.07]
[1728576209053,11.07,138.98,138.94,14.672]
[1728576209549,3.6008,138.99,138.95,14.6717]
[1728576210348,3.6008,138.99,138.92,2.7095]
[1728576210349,3.76836029,139.01,138.98,11.07]
[1728576210555,0.12502,139.01,138.92,2.7095]
[1728576210746,0.12502,139.01,138.98,11.07]
[1728576210947,0.12502,139.01,138.92,2.7095]
[1728576210948,3.72045004,139.01,138.97,11.07]
[1728576211148,11.19502,139.01,138.96,11.07]
[1728576211451,14.79532,139.01,138.96,14.6714]
[1728576211650,18.48548985,139.01,138.96,14.6714]
[1728576212148,3.81518985,139.01,138.97,14.6712]
[1728576212451,0.12502,139.01,138.95,6.34]
[1728576212649,0.12502,139.01,139.0,11.07]
[1728576213262,0.12502,139.01,138.99,11.07]
[1728576213565,6.46502,139.07,139.0,11.07]
[1728576213856,1.26835427,139.06,139.04,11.07]
[1728576214149,17.53502,139.07,138.99,6.34]
[1728576214354,11.07,139.05,138.99,6.34]
[1728576214554,3.57582325,139.04,139.0,11.07]
[1728576214854,11.07,139.03,138.98,11.07]
[1728576215551,14.71065486,139.04,138.99,14.6707]
[1728576215756,11.07,139.03,138.98,11.07]
[1728576216055,3.56234422,139.02,138.98,11.07]
[1728576217154,3.6002,139.02,138.98,11.07]
[1728576217343,3.53569506,139.02,138.99,11.07]
[1728576217552,11.07,139.04,138.99,11.07]
[1728576217746,14.70472909,139.04,138.99,11.07]
[1728576218152,3.63472909,139.04,139.0,11.07]
[1728576218353,17.81,139.06,139.0,11.07]
[1728576218552,1.26827962,139.05,139.0,11.07]
[1728576218748,3.68766729,139.04,139.0,11.07]
[1728576219054,3.6143021,139.04,139.0,14.6703]
[1728576220445,3.72382,139.07,139.02,3.6]
[1728576221958,0.12502,139.07,139.02,3.6]
[1728576222160,3.599,139.06,139.01,20.88]
[1728576222362,3.599,139.06,139.01,3.6]
[1728576222568,0.12502,139.07,138.99,17.28]
[1728576222861,1.26822674,139.06,139.02,3.5998]
[1728576223459,1.26822674,139.06,139.03,3.5997]
[1728576223656,0.12502,139.07,139.03,3.5997]
[1728576223858,0.12502,139.07,139.01,17.28]
[1728576224052,0.12502,139.07,139.03,3.5996]
[1728576225062,3.72372,139.07,139.02,4.9298]
[1728576226865,0.12502,139.07,139.02,4.9298]
[1728576227173,3.72372,139.07,139.03,3.5996]
[1728576227565,0.12502,139.07,139.03,3.5996]
[1728576229472,0.12502,139.07,139.02,1.3299]
[1728576229676,0.12502,139.07,138.99,17.28]
[1728576229879,17.28,139.06,138.98,2.7772]
[1728576230072,3.5996,139.04,138.99,3.6005]
[1728576230371,0.12502,139.07,138.99,17.28]
[1728576230573,0.12502,139.07,139.01,3.6001]
[1728576230774,0.12502,139.07,138.99,17.28]
[1728576231176,3.5992,139.06,139.01,3.6001]
[1728576231883,3.5992,139.05,139.01,3.6001]
[1728576232377,3.5991,139.06,139.01,3.6]
[1728576232569,0.12502,139.07,138.99,17.28]
[1728576232773,17.40502,139.07,138.98,2.7772]
[1728576233680,17.40502,139.07,138.98,6.3782]
[1728576233681,39.06502,139.07,138.98,6.3782]
[1728576233980,39.06502,139.07,138.98,2.7772]
[1728576233981,17.28,139.05,138.98,2.7772]
[1728576234280,7.2309228,139.04,138.99,3.6006]
[1728576234682,7.2309228,139.04,138.98,2.7772]
[1728576235073,7.2309228,139.04,139.0,3.6004]
[1728576235278,3.6313228,139.04,138.99,17.28]
[1728576235684,3.6313228,139.04,139.0,3.6003]
[1728576236484,7.2308228,139.04,139.0,3.6003]
[1728576236685,6.74,139.05,139.01,3.6001]
[1728576236886,6.74,139.05,138.99,17.28]
[1728576237185,3.5996,139.04,138.99,17.28]
[1728576237579,3.5996,139.04,139.0,3.6003]
[1728576237876,3.6001,139.02,138.98,2.7772]
[1728576238080,3.6001,139.02,138.98,6.3781]
[1728576238376,3.69018815,139.03,138.98,2.7772]
[1728576238587,3.6001,139.02,138.98,6.3781]
[1728576238777,7.26003776,139.02,138.98,6.3781]
[1728576238977,7.26003776,139.02,138.98,1.4067]
[1728576238978,3.6002,139.01,138.98,1.4067]
[1728576239175,17.28,139.03,138.94,17.28]
[1728576239675,17.28,139.03,138.95,1.50582]
[1728576239982,3.6006,139.0,138.96,3.6014]
[1728576240183,20.82397791,139.03,138.95,1.50582]
[1728576240977,3.54397791,139.03,138.96,17.28]
[1728576241177,3.6001,139.02,138.99,3.6007]
[1728576241378,3.54397791,139.03,138.99,3.6007]
[1728576241574,6.74,139.04,138.98,17.28]
[1728576241788,3.5994,139.05,139.0,3.6003]
[1728576242004,0.12502,139.07,139.0,17.28]
[1728576242479,3.72392,139.07,139.02,3.5998]
[1728576242684,0.12502,139.07,139.02,17.28]
[1728576242886,0.12502,139.07,139.04,3.5993]
[1728576243278,0.12502,139.07,139.05,3.599]
[1728576243585,0.12502,139.07,139.06,17.28]
[1728576244172,0.12502,139.07,139.06,20.8789]
[1728576244381,0.12502,139.07,139.06,17.28]
[1728576244589,0.12502,139.07,139.01,8.0897]
[1728576244590,0.12502,139.07,139.04,17.28]
[1728576244779,0.12502,139.07,139.05,3.599]
[1728576245092,0.12502,139.07,139.04,17.28]
[1728576245382,0.12518,139.08,139.05,3.599]
[1728576245580,0.12518,139.08,139.03,17.28]
[1728576245988,0.12518,139.08,139.05,17.28]
[1728576246177,0.12502,139.13,139.06,17.28]
[1728576246377,3.5974,139.12,139.09,17.28]
[1728576246684,3.65472192,139.13,139.07,17.28]
[1728576246884,0.12502,139.13,139.07,17.28]
[1728576247082,3.5976,139.12,139.07,20.8785]
[1728576247283,3.67510822,139.12,139.07,17.28]
[1728576247690,7.27250822,139.12,139.07,20.8785]
[1728576247885,0.12502,139.13,139.07,17.28]
[1728576248081,3.5978,139.11,139.07,3.5986]
[1728576248383,3.75065812,139.13,139.07,17.28]
[1728576248688,7.34795812,139.13,139.08,3.5983]
[1728576248987,7.34795812,139.13,139.07,17.28]
[1728576249380,7.34795812,139.13,139.08,3.5983]
[1728576249691,3.5976,139.12,139.07,17.28]
[1728576249888,3.75065812,139.13,139.07,17.28]
[1728576250084,3.75065812,139.13,139.09,3.5981]
[1728576250583,3.75065812,139.13,139.07,17.28]
[1728576250784,3.5977,139.11,139.07,17.28]
[1728576251087,3.75065812,139.13,139.06,3.5987]
[1728576251286,3.5978,139.11,139.06,3.5987]
[1728576251792,3.5978,139.11,139.05,17.28]
[1728576251793,3.5975,139.12,139.07,20.8786]
[1728576252586,3.75065812,139.13,139.07,17.28]
[1728576252786,3.5978,139.11,139.06,3.5988]
[1728576253582,3.75065812,139.13,139.05,17.28]
[1728576253782,17.28,139.11,139.01,1.47472]
[1728576253996,17.28,139.08,139.01,1.47472]
[1728576254189,17.28,139.06,139.01,0.12502]
[1728576254991,3.5999,139.03,139.01,0.12502]
[1728576255184,20.79599539,139.06,139.01,0.12502]
[1728576255693,3.5993,139.05,139.01,0.12502]
[1728576255894,20.79599539,139.06,139.01,0.12502]
[1728576257291,17.28,139.04,139.01,0.12502]
[1728576257491,3.6,139.02,139.01,0.12502]
[1728576257693,7.2827954,139.02,139.01,0.12502]
[1728576257994,3.6,139.02,139.01,0.12502]
[1728576258295,10.6199,139.03,139.01,0.12502]
[1728576258501,7.02,139.06,139.01,0.12502]
[1728576258703,24.3,139.06,139.01,0.12502]
[1728576258893,3.6,139.03,139.01,0.12502]
[1728576259089,3.5869887,139.02,139.01,0.12502]
[1728576259702,24.3,139.06,139.01,0.12502]
[1728576259902,3.6,139.02,139.01,0.12502]
[1728576260408,7.11855533,139.02,139.01,0.12502]
[1728576260701,7.02,139.06,139.01,0.12502]
[1728576261106,10.62756079,139.06,139.01,0.12502]
[1728576261809,3.5993,139.05,139.01,0.12502]
[1728576261994,10.62756079,139.06,139.01,0.12502]
[1728576263109,7.27501438,139.05,139.01,0.12502]
[1728576263312,3.56939316,139.05,139.01,0.12502]
[1728576263510,7.02,139.06,139.01,0.12502]
[1728576264004,3.5997,139.03,139.01,0.12502]
[1728576264399,10.67004928,139.06,139.01,0.12502]
[1728576264400,3.6,139.02,139.01,0.12502]
[1728576267611,17.28,139.05,139.01,0.12502]
[1728576267919,10.67004928,139.06,139.01,0.12502]
[1728576268918,10.67004928,139.06,138.95,0.12502]
[1728576268919,38.94,139.02,138.95,0.12502]
[1728576269107,1.26822734,139.05,138.95,0.12502]
[1728576269108,47.4209,139.01,138.96,5.89247639]
[1728576269305,3.6009,138.99,138.95,0.12502]
[1728576269510,47.4209,139.01,138.96,5.89266013]
[1728576269714,25.7609,139.01,138.95,0.12502]
[1728576269905,47.4209,139.01,138.96,5.89304694]
[1728576270109,47.4209,139.01,138.95,0.12502]
[1728576270412,3.6003,139.01,138.97,3.601]
[1728576270618,109.13962945,139.04,138.95,17.40502]
[1728576270826,109.13962945,139.04,138.96,5.8929846]
[1728576271114,3.6001,139.02,138.95,17.40502]
[1728576271315,3.6001,139.02,138.96,5.89271308]
[1728576271517,3.6003,139.01,138.97,3.6011]
[1728576271712,7.02,139.04,138.97,17.28]
[1728576271907,7.02,139.04,138.98,5.89119289]
[1728576272215,7.02,139.04,138.97,17.28]
[1728576272517,7.02,139.04,138.98,5.89191041]
[1728576272809,7.02,139.04,138.97,17.28]
[1728576273016,3.6001,139.02,138.98,5.89185145]
[1728576273212,3.6001,139.02,138.97,20.8812]
[1728576273509,7.02,139.04,138.96,1.4021]
[1728576273510,28.68,139.04,138.96,1.4021]
[1728576273718,3.6006,139.0,138.97,5.89286013]
[1728576273915,3.6006,139.0,138.98,5.89286013]
[1728576274116,3.6003,139.01,138.96,5.0036]
[1728576274317,40.3724,139.03,138.97,15.32514339]
[1728576274615,40.3724,139.03,138.95,0.12502]
[1728576274616,3.6007,139.0,138.95,0.12502]
[1728576274817,7.12,139.0,138.96,5.89682704]
[1728576275020,7.12,139.0,138.95,0.12502]
[1728576275220,3.601,138.99,138.96,5.89664987]
[1728576275420,3.601,138.99,138.95,0.12502]
[1728576275607,3.60365762,138.99,138.96,5.89680355]
[1728576275807,10.7207,139.0,138.95,3.72662]
[1728576276021,7.12,139.0,138.96,5.89713349]
[1728576276212,7.12,139.0,138.95,0.12502]
[1728576276408,7.12,139.0,138.96,5.89778906]
[1728576276616,7.12,139.0,138.95,0.12502]
[1728576276923,3.6009,138.99,138.96,5.8981959]
[1728576277219,7.12,139.0,138.96,3.6015]
[1728576277412,10.7207,139.0,138.95,0.12502]
[1728576277615,3.61966354,138.99,138.96,5.90087223]
[1728576277922,3.61966354,138.99,138.95,3.72662]
[1728576278219,3.6008,138.99,138.96,5.90464382]
[1728576278418,3.6848535,138.98,138.95,3.72662]
[1728576278720,3.6848535,138.98,138.96,5.90461492]
[1728576278919,3.6848535,138.98,138.95,3.72662]
[1728576279118,3.6848535,138.98,138.96,5.90448234]
[1728576279320,3.6848535,138.98,138.95,3.72662]
[1728576279523,3.6848535,138.98,138.96,5.90514132]
[1728576279712,3.6848535,138.98,138.95,3.72662]
[1728576279916,7.2858535,138.98,138.96,5.90506062]
[1728576280222,3.601,138.98,138.95,0.12502]
[1728576280422,3.61163966,138.98,138.96,5.90530863]
[1728576280718,3.67143144,138.99,138.96,3.6015]
[1728576281021,3.67143144,138.99,138.95,0.12502]
[1728576281318,7.27223144,138.99,138.95,3.72662]
[1728576281517,3.67143144,138.99,138.96,5.90775557]
[1728576281715,3.67143144,138.99,138.95,0.12502]
[1728576281911,3.67143144,138.99,138.96,5.90770674]
[1728576282116,3.67143144,138.99,138.95,0.12502]
[1728576282318,7.27223144,138.99,138.96,5.90774118]
[1728576282518,7.27223144,138.99,138.95,3.72672]
[1728576282721,7.27223144,138.99,138.96,5.90741501]
[1728576282921,3.6012,138.98,138.95,0.12502]
[1728576283125,7.12,139.0,138.96,5.90772134]
[1728576283326,7.12,139.0,138.96,17.28]
[1728576283524,7.12,139.0,138.97,9.50588976]
[1728576283819,7.12,139.0,138.97,3.6011]
[1728576284027,3.6004,139.01,138.97,3.6011]
[1728576284423,3.6004,139.01,138.96,20.8814]
[1728576284632,3.6004,139.01,138.97,5.90466667]
[1728576284821,3.6004,139.01,138.96,17.28]
[1728576285023,3.6004,139.01,138.97,9.50563522]
[1728576285216,3.6004,139.01,138.97,3.6011]
[1728576285434,3.6004,139.01,138.96,17.28]
[1728576285631,3.6004,139.01,138.97,5.90363275]
[1728576285833,3.6004,139.01,138.95,0.12502]
[1728576286034,3.6004,139.01,138.96,15.34897791]
[1728576286236,3.6004,139.01,138.97,9.50465304]
[1728576286442,3.6004,139.01,138.97,3.6012]
[1728576286848,7.12,139.02,138.95,0.12502]
[1728576287031,3.6007,139.0,138.96,15.35040747]
[1728576287231,17.28,138.99,138.97,5.90400287]
[1728576287443,8.513,138.98,138.95,0.12502]
[1728576287832,7.12,138.98,138.95,0.12502]
[1728576289639,3.6015,138.96,138.95,0.12502]
[1728576290036,17.28,138.97,138.89,8.87718066]
[1728576290233,17.28,138.93,138.9,9.28814811]
[1728576290440,7.12,138.92,138.89,0.12502]
[1728576290747,3.6031,138.9,138.89,0.12502]
[1728576290945,3.60279329,138.9,138.89,0.12502]
[1728576291243,7.12,138.92,138.89,0.12502]
[1728576291546,3.6031,138.9,138.89,0.12502]
[1728576291747,10.68064483,138.92,138.89,0.12502]
[1728576291950,3.603,138.91,138.89,0.12502]
[1728576292240,27.96064483,138.92,138.89,0.12502]
[1728576292748,3.6031,138.9,138.89,0.12502]
[1728576295141,20.8831,138.9,138.89,0.12502]
[1728576295445,17.28,138.9,138.83,0.12502]
[1728576295636,17.28,138.86,138.83,0.12502]
[1728576295842,7.12,138.85,138.83,0.12502]
[1728576296347,3.6046,138.84,138.83,0.12502]
[1728576296548,7.27665818,138.84,138.83,0.12502]
[1728576296845,3.6046,138.84,138.83,0.12502]
[1728576297043,7.18686711,138.84,138.83,0.12502]
[1728576297243,24.46686711,138.84,138.83,0.12502]
[1728576297437,20.80226711,138.84,138.78,3.606]
[1728576297638,17.28,138.84,138.77,0.12502]
[1728576298042,3.6054,138.82,138.77,12.89267942]
[1728576298248,7.12,138.81,138.77,0.12502]
[1728576298753,3.57144891,138.84,138.77,26.55954205]
[1728576298938,10.674861,138.85,138.79,17.28]
[1728576299248,10.674861,138.85,138.77,17.40502]
[1728576299447,10.674861,138.85,138.78,14.85884013]
[1728576299644,10.674861,138.85,138.79,14.85884013]
[1728576299837,14.279361,138.85,138.8,9.32043851]
[1728576300045,10.674861,138.85,138.8,3.6055]
[1728576300442,3.6049,138.83,138.79,3.6058]
[1728576300745,3.6049,138.83,138.77,17.40502]
[1728576301049,3.6049,138.83,138.78,14.86195414]
[1728576301249,27.954861,138.85,138.79,5.71613621]
[1728576301442,27.954861,138.85,138.77,17.40502]
[1728576301443,27.954861,138.85,138.78,9.14446615]
[1728576301644,27.954861,138.85,138.79,5.71172456]
[1728576301838,27.954861,138.85,138.77,17.40502]
[1728576302039,27.954861,138.85,138.78,5.71163086]
[1728576302242,27.954861,138.85,138.79,5.71163086]
[1728576302441,31.559361,138.85,138.8,3.6055]
[1728576302647,31.559361,138.85,138.77,17.40502]
[1728576302648,27.954861,138.85,138.77,17.40502]
[1728576302945,7.12,138.88,138.81,17.28]
[1728576303148,10.73652475,138.88,138.83,17.28]
[1728576303351,1.12502,138.89,138.83,17.28]
[1728576303545,1.12502,138.89,138.84,1.3973]
[1728576303856,0.12502,138.89,138.84,1.3973]
[1728576304449,0.12502,138.89,138.84,18.6773]
[1728576304652,0.12502,138.89,138.88,3.6036]
[1728576304853,0.12502,138.89,138.84,18.6773]
[1728576305145,0.12502,138.89,138.85,5.69907745]
[1728576305345,0.12502,138.89,138.84,18.6773]
[1728576305551,0.12502,138.89,138.85,5.69860949]
[1728576305751,0.12502,138.89,138.84,18.6773]
[1728576306059,0.12502,138.89,138.87,3.6037]
[1728576306554,3.72852,138.89,138.85,3.6042]
[1728576306755,3.79487271,138.89,138.81,27.68]
[1728576306949,3.79487271,138.89,138.81,1.3596]
[1728576307256,3.6043,138.86,138.82,9.3053224]
[1728576307448,34.64,138.88,138.8,2.7192]
[1728576307643,3.605,138.83,138.8,2.7192]
[1728576307846,3.60208606,138.82,138.78,1.3596]
[1728576308061,6.96,138.84,138.79,5.70390162]
[1728576308256,3.6053,138.82,138.78,4.9658]
[1728576308553,6.96,138.84,138.78,1.3596]
[1728576308754,10.5647,138.84,138.8,3.6056]
[1728576309952,6.96,138.84,138.77,0.12502]
[1728576311657,3.6052,138.82,138.78,3.606]
[1728576311848,3.56278966,138.82,138.77,0.12502]
[1728576312057,56.3,138.84,138.77,0.12502]
[1728576312255,3.6059,138.8,138.77,0.12502]
[1728576312457,14.13626316,138.8,138.77,0.12502]
[1728576313665,3.6061,138.79,138.77,0.12502]
[1728576313857,10.53036316,138.8,138.77,0.12502]
[1728576314250,3.6062,138.78,138.77,0.12502]
[1728576314456,3.6062,138.78,138.77,0.06502]
[1728576315354,10.53036316,138.8,138.77,0.06502]
[1728576315661,3.606,138.79,138.77,0.06502]
[1728576315865,6.96,138.8,138.77,0.06502]
[1728576316559,3.6061,138.79,138.77,0.06502]
[1728576317057,14.08549869,138.8,138.77,0.06502]
[1728576317265,6.96,138.81,138.77,0.06502]
[1728576317564,5.1016,138.83,138.77,0.06502]
[1728576317770,7.02,138.83,138.77,0.06502]
[1728576317951,7.02,138.83,138.78,3.606]
[1728576318155,3.6052,138.82,138.77,0.06502]
[1728576318760,10.6251,138.83,138.77,0.06502]
[1728576318959,7.02,138.83,138.77,0.06502]
[1728576319460,3.6054,138.81,138.78,3.6061]
[1728576319961,3.6053,138.82,138.77,0.06502]
[1728576321161,3.6053,138.82,138.79,3.6058]
[1728576321359,0.06,138.83,138.78,6.96]
[1728576321554,3.79487271,138.89,138.82,3.605]
[1728576321753,3.79487271,138.89,138.82,6.96]
[1728576321955,3.6037,138.88,138.82,6.96]
[1728576322156,3.79487271,138.89,138.84,3.6045]
[1728576322462,3.6039,138.87,138.84,3.6045]
[1728576322857,3.6044,138.85,138.82,3.605]
[1728576323056,31.47487271,138.89,138.79,2.7393]
[1728576323256,6.96,138.88,138.8,3.6055]
[1728576323659,3.6048,138.84,138.8,3.6055]
[1728576324460,3.6048,138.84,138.79,9.6993]
[1728576324461,3.6048,138.84,138.81,3.6054]
[1728576324868,6.96,138.88,138.8,27.68]
[1728576325055,6.96,138.88,138.83,3.6047]
[1728576325259,3.604,138.87,138.83,3.6047]
[1728576325461,3.604,138.87,138.8,27.68]
[1728576325660,6.96,138.88,138.84,3.6044]
[1728576325859,3.79487271,138.89,138.84,3.6044]
[1728576326055,3.604,138.87,138.8,27.68]
[1728576326259,3.79487271,138.89,138.81,5.69339449]
[1728576326463,3.6051,138.83,138.79,9.6993]
[1728576326868,31.47487271,138.89,138.79,9.6993]
[1728576327068,3.6046,138.85,138.79,9.6993]
[1728576327261,31.47487271,138.89,138.79,9.6993]
[1728576327464,3.79487271,138.89,138.8,27.68]
[1728576327865,3.6039,138.87,138.84,3.6045]
[1728576328071,0.12502,138.89,138.8,27.68]
[1728576328572,0.12502,138.89,138.82,27.68]
[1728576328573,3.72842,138.89,138.82,27.68]
[1728576328768,3.72842,138.89,138.83,6.96]
[1728576328966,0.12502,138.89,138.83,6.96]
[1728576329271,0.12502,138.89,138.82,6.96]
[1728576330273,3.6039,138.87,138.83,3.6047]
[1728576330471,0.12502,138.89,138.82,6.96]
[1728576330863,3.6039,138.88,138.84,3.6046]
[1728576331063,0.12502,138.89,138.82,6.96]
[1728576332069,3.6039,138.88,138.83,3.6048]
[1728576333567,3.6039,138.88,138.84,3.6046]
[1728576333771,0.12502,138.89,138.84,17.3]
[1728576334774,0.12502,138.89,138.87,3.6036]
[1728576334972,0.12502,138.89,138.85,2.6904]
[1728576335172,0.12502,138.89,138.86,24.14]
[1728576335375,0.12502,138.95,138.88,17.3]
[1728576336076,3.72702,138.95,138.88,17.3]
[1728576336372,0.12502,138.95,138.88,27.69]
[1728576336579,0.12502,138.95,138.9,27.69]
[1728576336766,3.6778275,139.01,138.91,9.5249]
[1728576336969,3.6006,139.0,138.96,3.6015]
[1728576337572,3.6006,139.0,138.91,9.5249]
[1728576337773,3.6778275,139.01,138.97,3.6012]
[1728576337976,7.2781275,139.01,138.92,27.69]
[1728576338284,3.6778275,139.01,138.92,27.69]
[1728576338778,0.12502,139.01,138.92,27.69]
[1728576338971,0.12502,139.01,138.93,5.68285464]
[1728576339170,0.12502,139.01,138.92,27.69]
[1728576339475,0.12502,139.01,138.97,3.601]
[1728576339676,0.12502,139.01,138.96,6.82]
[1728576339981,0.12502,139.01,138.98,3.6008]
[1728576340282,3.72542,139.01,138.96,6.82]
[1728576340877,3.72542,139.01,138.97,3.6012]
[1728576342078,0.12502,139.01,138.98,3.601]
[1728576342874,0.12502,139.01,138.96,6.82]
[1728576343275,0.12502,139.01,138.97,8.2113]
[1728576343781,0.12502,139.01,138.98,3.601]
[1728576343977,0.12502,139.01,138.93,29.012]
[1728576344182,0.12502,139.01,138.95,3.6017]
[1728576344183,3.6009,138.99,138.95,3.6017]
[1728576344681,3.6009,138.99,138.94,8.2113]
[1728576344888,3.6009,138.99,138.96,3.6015]
[1728576345287,3.6009,138.99,138.94,8.2113]
[1728576345288,3.6009,138.99,138.94,1.3913]
[1728576345479,3.601,138.98,138.95,10.4216]
[1728576345885,0.12502,139.01,138.94,1.3913]
[1728576346085,3.602,138.94,138.92,6.82]
[1728576346391,3.59933582,138.96,138.91,1.38]
[1728576346697,3.6027,138.92,138.9,6.82]
[1728576346983,3.6027,138.92,138.89,1.55712]
[1728576347189,3.58961178,138.95,138.89,1.55712]
[1728576347392,27.69,138.97,138.89,1.55712]
[1728576347790,27.69,138.97,138.9,3.603]
[1728576347992,31.28465388,138.97,138.9,3.603]
[1728576348186,31.28465388,138.97,138.92,3.6026]